fUSD/lending_fUSD_20250426
["ID","MTS","AMOUNT","RATE_DAILY","PERIOD"]
[359102453,1745707844611,-574.4477874,0.00019979,2]
[359102455,1745707844622,-638.77,0.00019979,2]
[359102456,1745707844632,-638.77,0.00019979,2]
[359102458,1745707844641,-638.77,0.00019979,2]
[359102461,1745707844652,-170890.82067895,0.0001998,2]
[359102463,1745707844661,-10565.25606187,0.0001998,2]
[359102466,1745707844680,-469838.78703719,0.0001998,2]
[359102467,1745707844689,-188.66666666,0.0001998,2]
[359102470,1745707844700,-152.819799,0.0001998,2]
[359102471,1745707844710,-151.0,0.0001998,2]
[359102473,1745707844720,-151.0,0.0001998,2]
[359102475,1745707844730,-151.0,0.0001998,2]
[359102478,1745707844740,-151.0,0.0001998,2]
[359102480,1745707844749,-151.0,0.0001998,2]
[359102482,1745707844759,-151.0,0.0001998,2]
[359102484,1745707844768,-151.0,0.0001998,2]
[359102485,1745707844777,-151.0,0.0001998,2]
[359102488,1745707844788,-151.0,0.0001998,2]
[359102490,1745707844797,-151.0,0.0001998,2]
[359102492,1745707844807,-151.0,0.0001998,2]
[359102494,1745707844816,-151.0,0.0001998,2]
[359102496,1745707844825,-229.399402,0.0001998,2]
[359102498,1745707844834,-151.0,0.0001998,2]
[359102500,1745707844843,-151.0,0.0001998,2]
[359102502,1745707844854,-151.0,0.0001998,2]
[359102504,1745707844864,-151.0,0.0001998,2]
[359102506,1745707844873,-174.855026,0.0001998,2]
[359102508,1745707844883,-174.855026,0.0001998,2]
[359102510,1745707844893,-174.855026,0.0001998,2]
[359102512,1745707844902,-174.855026,0.0001998,2]
[359102514,1745707844912,-153.995718,0.0001998,2]
[359102516,1745707844921,-151.0,0.0001998,2]
[359102518,1745707844930,-151.0,0.0001998,2]
[359102520,1745707844943,-155.922673,0.0001998,2]
[359102522,1745707844952,-299.45988,0.0001998,2]
[359102524,1745707844962,-151.0,0.0001998,2]
[359102526,1745707844973,-231.200449,0.0001998,2]
[359102528,1745707844983,-151.0,0.0001998,2]
[359102530,1745707844993,-231.200449,0.0001998,2]
[359102532,1745707845002,-151.0,0.0001998,2]
[359102534,1745707845012,-715.951003,0.0001998,2]
[359102536,1745707845022,-715.951003,0.0001998,2]
[359102538,1745707845032,-151.0,0.0001998,2]
[359102540,1745707845041,-151.0,0.0001998,2]
[359102542,1745707845051,-151.0,0.0001998,2]
[359102544,1745707845060,-151.0,0.0001998,2]
[359102546,1745707845070,-151.0,0.0001998,2]
[359102548,1745707845079,-151.0,0.0001998,2]
[359102550,1745707845088,-151.0,0.0001998,2]
[359102552,1745707845098,-151.0,0.0001998,2]
[359102554,1745707845109,-151.0,0.0001998,2]
[359102556,1745707845119,-151.0,0.0001998,2]
[359102558,1745707845129,-151.0,0.0001998,2]
[359102560,1745707845139,-153.660397,0.0001998,2]
[359102562,1745707845149,-151.0,0.0001998,2]
[359102564,1745707845159,-152.016543,0.0001998,2]
[359102566,1745707845169,-151.0,0.0001998,2]
[359102568,1745707845179,-151.0,0.0001998,2]
[359102570,1745707845190,-151.0,0.0001998,2]
[359102572,1745707845199,-151.0,0.0001998,2]
[359102574,1745707845209,-151.0,0.0001998,2]
[359102576,1745707845219,-151.0,0.0001998,2]
[359102578,1745707845229,-151.0,0.0001998,2]
[359102580,1745707845239,-628.450043,0.0001998,2]
[359102582,1745707845250,-158.424031,0.0001998,2]
[359102584,1745707845260,-628.450043,0.0001998,2]
[359102586,1745707845270,-151.0,0.0001998,2]
[359102588,1745707845280,-151.0,0.0001998,2]
[359102590,1745707845290,-151.0,0.0001998,2]
[359102592,1745707845299,-151.0,0.0001998,2]
[359102594,1745707845309,-156.326837,0.0001998,2]
[359102596,1745707845320,-151.0,0.0001998,2]
[359102598,1745707845330,-151.0,0.0001998,2]
[359102600,1745707845339,-213.105836,0.0001998,2]
[359102602,1745707845349,-151.0,0.0001998,2]
[359102604,1745707845359,-151.0,0.0001998,2]
[359102606,1745707845369,-232.984158,0.0001998,2]
[359102608,1745707845379,-151.0,0.0001998,2]
[359102610,1745707845388,-232.984158,0.0001998,2]
[359102612,1745707845398,-151.0,0.0001998,2]
[359102614,1745707845407,-151.0,0.0001998,2]
[359102616,1745707845417,-151.0,0.0001998,2]
[359102618,1745707845427,-151.0,0.0001998,2]
[359102620,1745707845438,-156.646834,0.0001998,2]
[359102622,1745707845447,-927.368738,0.0001998,2]
[359102624,1745707845458,-270.31,0.0001998,2]
[359102626,1745707845467,-151.0,0.0001998,2]
[359102628,1745707845477,-151.0,0.0001998,2]
[359102630,1745707845487,-276.175567,0.0001998,2]
[359102632,1745707845496,-151.0,0.0001998,2]
[359102634,1745707845506,-276.175567,0.0001998,2]
[359102636,1745707845515,-151.0,0.0001998,2]
[359102638,1745707845525,-827.293328,0.0001998,2]
[359102640,1745707845534,-151.0,0.0001998,2]
[359102642,1745707845543,-151.0,0.0001998,2]
[359102644,1745707845553,-151.0,0.0001998,2]
[359102646,1745707845563,-151.921909,0.0001998,2]
[359102647,1745707845573,-151.0,0.0001998,2]
[359102648,1745707845582,-207.069999,0.0001998,2]
[359102649,1745707845592,-207.069999,0.0001998,2]
[359102650,1745707845602,-151.0,0.0001998,2]
[359102651,1745707845611,-151.0,0.0001998,2]
[359102652,1745707845621,-322.82572,0.0001998,2]
[359102653,1745707845632,-151.0,0.0001998,2]
[359102654,1745707845641,-322.82572,0.0001998,2]
[359102655,1745707845650,-321.802841,0.0001998,2]
[359102656,1745707845659,-154.176959,0.0001998,2]
[359102657,1745707845670,-321.802841,0.0001998,2]
[359102658,1745707845679,-151.0,0.0001998,2]
[359102659,1745707845689,-151.0,0.0001998,2]
[359102660,1745707845698,-151.0,0.0001998,2]
[359102661,1745707845708,-592.860476,0.0001998,2]
[359102662,1745707845717,-592.860476,0.0001998,2]
[359102663,1745707845727,-151.0,0.0001998,2]
[359102664,1745707845736,-154.197473,0.0001998,2]
[359102665,1745707845746,-151.0,0.0001998,2]
[359102666,1745707845755,-151.0,0.0001998,2]
[359102667,1745707845765,-151.0,0.0001998,2]
[359102668,1745707845774,-494.981625,0.0001998,2]
[359102669,1745707845783,-494.981625,0.0001998,2]
[359102670,1745707845792,-151.0,0.0001998,2]
[359102671,1745707845801,-151.0,0.0001998,2]
[359102672,1745707845810,-151.0,0.0001998,2]
[359102673,1745707845819,-151.0,0.0001998,2]
[359102674,1745707845829,-151.0,0.00019985,2]
[359102675,1745707845839,-151.0,0.00019985,2]
[359102676,1745707845849,-151.0,0.00019985,2]
[359102677,1745707845858,-275.782905,0.00019985,2]
[359102678,1745707845867,-151.0,0.00019985,2]
[359102680,1745707845877,-176.852989,0.00019985,2]
[359102682,1745707845886,-638.85,0.00019985,2]
[359102684,1745707845896,-638.85,0.00019985,2]
[359102686,1745707845906,-500.0,0.00019985,2]
[359102688,1745707845915,-500.0,0.00019985,2]
[359102690,1745707845925,-500.0,0.00019985,2]
[359102692,1745707845935,-500.0,0.00019985,2]
[359102694,1745707845947,-500.0,0.00019985,2]
[359102719,1745707846175,-500.0,0.00019985,2]
[359102722,1745707846185,-500.0,0.00019985,2]
[359102724,1745707846194,-500.0,0.00019985,2]
[359102726,1745707846204,-500.0,0.00019985,2]
[359102728,1745707846213,-638.77,0.00019985,2]
[359102730,1745707846223,-638.77,0.00019985,2]
[359102732,1745707846232,-638.77,0.00019985,2]
[359102734,1745707846241,-638.77,0.00019985,2]
[359102736,1745707846251,-638.77,0.00019985,2]
[359102738,1745707846260,-638.77,0.00019985,2]
[359102740,1745707846271,-638.77,0.00019985,2]
[359102742,1745707846281,-151.0,0.00019985,2]
[359102744,1745707846291,-151.0,0.00019985,2]
[359102746,1745707846301,-151.0,0.00019985,2]
[359102748,1745707846311,-500.0,0.00019985,2]
[359102750,1745707846321,-500.0,0.00019985,2]
[359102752,1745707846331,-500.0,0.00019985,2]
[359102754,1745707846340,-500.0,0.00019985,2]
[359102756,1745707846350,-500.0,0.00019985,2]
[359102758,1745707846359,-629.738129,0.00019985,2]
[359102760,1745707846369,-300.0,0.00019985,2]
[359102762,1745707846379,-330.23165471,0.00019985,2]
[359102764,1745707846389,-300.0,0.00019985,2]
[359102766,1745707846398,-300.0,0.00019985,2]
[359102768,1745707846409,-300.0,0.00019985,2]
[359102770,1745707846419,-300.0,0.00019985,2]
[359102772,1745707846428,-64268.49542071,0.00019986,2]
[359102774,1745707846442,-13104.09970125,0.00019986,2]
[359102811,1745707846786,-151.0,0.0001998,2]
[359102813,1745707846795,-151.0,0.00019985,2]
[359102815,1745707846806,-1521.70000003,0.00019986,2]
[359102817,1745707846824,-6409.92198694,0.00019986,2]
[359102819,1745707846835,-47359.29530429,0.00019986,2]
[359102839,1745707847353,-400.0,0.00019778,2]
[359102840,1745707847363,-151.0,0.00019881,2]
[359102841,1745707847373,-2839.84,0.00019986,2]
[359102856,1745707847626,-151.0,0.00019881,2]
[359102858,1745707847636,-1135.0,0.00019944,2]
[359102860,1745707847645,-1843.68064164,0.00019986,2]
[359103408,1745707955543,275.43995101,0.00036986,60]
[359103409,1745708055438,500.0,0.000369,60]
[359103410,1745708091158,500.0,0.000369,120]
[359103411,1745708112025,281.40738965,0.00018943,2]
[359103412,1745708112054,10224.26261035,0.00018943,2]
[359103413,1745708135479,343.03,0.00017025,2]
[359103414,1745708135728,343.03,0.00019289,2]
[359103415,1745708156320,177.95,0.00018943,2]
[359103416,1745708160781,23900.0,0.00018943,2]
[359103417,1745708258735,-636.32007558,0.00019578,2]
[359103418,1745708258761,-636.32007557,0.00019676,2]
[359103419,1745708258790,-1200.0,0.00019677,2]
[359103420,1745708258818,-300.0,0.00019677,2]
[359103421,1745708258846,-200.0,0.00019678,2]
[359103422,1745708258872,-250.0,0.00019678,2]
[359103423,1745708258899,-562.72519859,0.00019678,2]
[359103424,1745708258927,-216.33248041,0.00019678,2]
[359103425,1745708314377,500.0,0.00019677,2]
[359103426,1745708314417,500.0,0.00019677,2]
[359103427,1745708314474,500.0,0.00019677,2]
[359103428,1745708314524,500.0,0.00019677,2]
[359103429,1745708314571,500.0,0.00019677,2]
[359103430,1745708314623,317.33895619,0.00019677,2]
[359103431,1745708325578,1247.36123512,0.00019677,2]
[359103432,1745708341202,300.0,0.00019677,2]
[359103433,1745708353448,627.49,0.00036986,60]
[359103434,1745708367949,153.66,0.00018899,2]
[359103435,1745708378248,300.0,0.00036986,60]
[359103436,1745708401238,1200.0,0.00019677,2]
[359103437,1745708401358,850.0,0.00019677,2]
[359103438,1745708411101,300.0,0.00019677,2]
[359103439,1745708462237,300.0,0.00019677,2]
[359103440,1745708475789,500.0,0.00036986,60]
[359103441,1745708480461,500.0,0.00036986,60]
[359103442,1745708489040,500.0,0.00036986,60]
[359103443,1745708493218,500.0,0.00036986,60]
[359103444,1745708497767,500.0,0.00036986,60]
[359103445,1745708504382,500.0,0.00036986,60]
[359103446,1745708521598,300.0,0.00019677,2]
[359103447,1745708524203,168.56325514,0.00019677,2]
[359103448,1745708529223,6702.145,0.00019677,2]
[359103449,1745708539359,200.0,0.00018866,2]
[359103450,1745708556320,1526.77,0.00018858,2]
[359103451,1745708559027,1852.42,0.00018858,2]
[359103452,1745708581978,300.0,0.00019677,2]
[359103453,1745708600075,1008.3,0.00018855,2]
[359103454,1745708701321,72.6729234,0.00019677,2]
[359103455,1745708733926,1000.0,0.0001883,2]
[359103456,1745708805305,191.74,0.00018814,2]
[359103457,1745708815996,27983.64,0.00018807,2]
[359103466,1745709022053,150.0,0.00018778,7]
[359103470,1745709031321,-150.08,0.00019387,2]
[359103471,1745709031331,-200.0,0.00019459,2]
[359103473,1745709031341,-200.0,0.00019532,2]
[359103475,1745709031351,-200.0,0.0001959,2]
[359103476,1745709031360,-269.7842,0.00019676,2]
[359103477,1745709031369,-256.0,0.00019676,2]
[359103478,1745709031379,-300.0,0.00019676,2]
[359103479,1745709031388,-1200.0,0.00019676,2]
[359103480,1745709031397,-94.96906335,0.00019677,2]
[359103482,1745709031412,-2843.49993665,0.00019677,2]
[359103484,1745709031421,-272.0,0.00019677,2]
[359103486,1745709031431,-313.0376618,0.00019677,2]
[359103488,1745709031441,-188.66666666,0.00019678,2]
[359103490,1745709031451,-14563.1061,0.00019678,2]
[359103492,1745709031461,-18140.93401018,0.00019683,2]
[359103494,1745709031470,-915.17937039,0.00019687,2]
[359103496,1745709031484,-117.97538841,0.00019698,2]
[359103497,1745709031496,-624.79046279,0.00019698,2]
[359103498,1745709031509,-5190.21163903,0.00019698,2]
[359103499,1745709031531,-624.46481583,0.00019698,2]
[359103500,1745709031547,-181518.80434083,0.00019698,2]
[359103501,1745709031556,-940.5938591,0.00019698,2]
[359103502,1745709031565,-1391.16398843,0.00019702,2]
[359103503,1745709031575,-1391.16398843,0.00019727,2]
[359103504,1745709031585,-18140.93401018,0.00019743,2]
[359103505,1745709031594,-1391.16398843,0.00019751,2]
[359103506,1745709031603,-20566.05358364,0.00019757,2]
[359103507,1745709031614,-151.0,0.00019765,2]
[359103508,1745709031623,-207.4,0.00019765,2]
[359103509,1745709031632,-162.66,0.00019766,2]
[359103510,1745709031642,-162.66,0.00019766,2]
[359103511,1745709031651,-162.66,0.00019766,2]
[359103512,1745709031661,-1800.35,0.00019766,2]
[359103514,1745709031670,-500.0,0.00019773,2]
[359103516,1745709031680,-500.0,0.00019773,2]
[359103518,1745709031689,-410.33492546,0.00019773,2]
[359103520,1745709031699,-169.10440595,0.00019773,2]
[359103521,1745709031709,-500.0,0.00019773,2]
[359103523,1745709031719,-500.0,0.00019773,2]
[359103525,1745709031728,-500.0,0.00019773,2]
[359103526,1745709031737,-400.0,0.00019775,2]
[359103527,1745709031746,-400.0,0.00019775,2]
[359103528,1745709031756,-400.0,0.00019775,2]
[359103529,1745709031765,-400.0,0.00019775,2]
[359103530,1745709031774,-400.0,0.00019775,2]
[359103531,1745709031783,-400.0,0.00019775,2]
[359103532,1745709031793,-400.0,0.00019775,2]
[359103533,1745709031802,-603.31,0.00019775,2]
[359103534,1745709031811,-557.99,0.00019775,2]
[359103535,1745709031820,-400.0,0.00019775,2]
[359103536,1745709031829,-400.0,0.00019775,2]
[359103537,1745709031838,-431.76,0.00019775,2]
[359103538,1745709031847,-400.0,0.00019775,2]
[359103539,1745709031856,-517.55,0.00019775,2]
[359103540,1745709031866,-769.04,0.00019775,2]
[359103541,1745709031874,-499.89,0.00019775,2]
[359103542,1745709031884,-400.0,0.00019775,2]
[359103543,1745709031893,-505.02,0.00019775,2]
[359103545,1745709031903,-400.0,0.00019775,2]
[359103547,1745709031912,-556.3,0.00019775,2]
[359103549,1745709031922,-400.0,0.00019775,2]
[359103551,1745709031931,-644.11,0.00019775,2]
[359103552,1745709031940,-400.0,0.00019775,2]
[359103554,1745709031950,-400.0,0.00019775,2]
[359103556,1745709031959,-400.0,0.00019775,2]
[359103558,1745709031969,-400.0,0.00019775,2]
[359103560,1745709031979,-400.0,0.00019775,2]
[359103562,1745709031988,-400.0,0.00019775,2]
[359103564,1745709031998,-400.0,0.00019775,2]
[359103566,1745709032007,-400.0,0.00019775,2]
[359103568,1745709032017,-400.0,0.00019775,2]
[359103570,1745709032026,-500.0,0.00019775,2]
[359103572,1745709032036,-5708.53,0.00019775,2]
[359103574,1745709032045,-400.0,0.00019775,2]
[359103576,1745709032054,-400.0,0.00019775,2]
[359103578,1745709032064,-400.0,0.00019775,2]
[359103580,1745709032074,-688.69,0.00019775,2]
[359103582,1745709032085,-400.0,0.00019775,2]
[359103584,1745709032094,-319.09030705,0.00019776,2]
[359103585,1745709032104,-186.93913526,0.00019776,2]
[359103587,1745709032115,-203.42943249,0.00019776,2]
[359103589,1745709032124,-500.0,0.00019776,2]
[359103591,1745709032133,-558.50613859,0.00019776,2]
[359103593,1745709032144,-400.0,0.00019776,2]
[359103595,1745709032154,-400.0,0.00019776,2]
[359103597,1745709032163,-400.0,0.00019776,2]
[359103599,1745709032173,-500.0,0.00019776,2]
[359103601,1745709032182,-513.88037635,0.00019776,2]
[359103603,1745709032192,-517.77229489,0.00019776,2]
[359103605,1745709032201,-400.0,0.00019776,2]
[359103607,1745709032211,-536.65850559,0.00019776,2]
[359103609,1745709032220,-400.0,0.00019776,2]
[359103611,1745709032229,-400.0,0.00019776,2]
[359103613,1745709032239,-400.0,0.00019776,2]
[359103615,1745709032248,-400.0,0.00019776,2]
[359103617,1745709032258,-265.07858345,0.00019776,2]
[359103619,1745709032268,-400.0,0.00019776,2]
[359103621,1745709032277,-400.0,0.00019776,2]
[359103623,1745709032287,-400.0,0.00019776,2]
[359103625,1745709032296,-502.20725441,0.00019776,2]
[359103627,1745709032307,-500.0,0.00019776,2]
[359103629,1745709032317,-200.0,0.00019776,2]
[359103631,1745709032327,-544.12091407,0.00019776,2]
[359103633,1745709032337,-400.0,0.00019776,2]
[359103635,1745709032346,-400.0,0.00019776,2]
[359103637,1745709032357,-501.17231651,0.00019776,2]
[359103639,1745709032366,-400.0,0.00019776,2]
[359103641,1745709032376,-400.0,0.00019776,2]
[359103643,1745709032385,-500.0,0.00019776,2]
[359103645,1745709032396,-472.81,0.00019776,2]
[359103647,1745709032405,-549.72608562,0.00019776,2]
[359103649,1745709032418,-500.83206328,0.00019776,2]
[359103651,1745709032428,-400.0,0.00019776,2]
[359103653,1745709032437,-500.0,0.00019776,2]
[359103655,1745709032446,-215.039,0.00019776,2]
[359103657,1745709032456,-405.26708458,0.00019776,2]
[359103659,1745709032465,-515.16,0.00019776,2]
[359103661,1745709032474,-400.0,0.00019776,2]
[359103663,1745709032483,-667.06,0.00019776,2]
[359103665,1745709032493,-400.0,0.00019776,2]
[359103667,1745709032504,-400.0,0.00019776,2]
[359103669,1745709032514,-500.0,0.00019776,2]
[359103671,1745709032524,-400.0,0.00019776,2]
[359103673,1745709032533,-400.0,0.00019776,2]
[359103675,1745709032542,-500.0,0.00019776,2]
[359103677,1745709032552,-400.0,0.00019776,2]
[359103679,1745709032561,-500.0,0.00019776,2]
[359103681,1745709032571,-500.0,0.00019776,2]
[359103683,1745709032581,-400.0,0.00019776,2]
[359103685,1745709032590,-400.0,0.00019776,2]
[359103687,1745709032599,-400.0,0.00019776,2]
[359103689,1745709032609,-400.0,0.00019776,2]
[359103691,1745709032619,-400.0,0.00019776,2]
[359103693,1745709032629,-400.0,0.00019776,2]
[359103695,1745709032639,-400.0,0.00019776,2]
[359103697,1745709032648,-1038.53,0.00019776,2]
[359103698,1745709032658,-400.0,0.00019776,2]
[359103700,1745709032667,-286.41314099,0.00019776,2]
[359103702,1745709032677,-400.0,0.00019776,2]
[359103705,1745709032687,-400.0,0.00019776,2]
[359103707,1745709032697,-400.0,0.00019776,2]
[359103709,1745709032707,-400.0,0.00019776,2]
[359103711,1745709032717,-500.0,0.00019776,2]
[359103713,1745709032726,-415.75,0.00019776,2]
[359103714,1745709032735,-400.0,0.00019776,2]
[359103716,1745709032745,-536.57836525,0.00019776,2]
[359103718,1745709032754,-400.0,0.00019776,2]
[359103720,1745709032764,-400.0,0.00019776,2]
[359103722,1745709032773,-400.0,0.00019776,2]
[359103724,1745709032782,-518.69340176,0.00019776,2]
[359103726,1745709032792,-400.0,0.00019776,2]
[359103728,1745709032802,-507.19374381,0.00019776,2]
[359103730,1745709032812,-400.0,0.00019776,2]
[359103731,1745709032822,-524.6,0.00019776,2]
[359103732,1745709032831,-433.29,0.00019776,2]
[359103733,1745709032841,-400.0,0.00019776,2]
[359103734,1745709032851,-400.0,0.00019776,2]
[359103735,1745709032860,-400.0,0.00019776,2]
[359103736,1745709032870,-400.0,0.00019776,2]
[359103737,1745709032880,-250.0,0.00019776,2]
[359103738,1745709032889,-503.48671736,0.00019776,2]
[359103739,1745709032899,-500.0,0.00019776,2]
[359103740,1745709032908,-400.0,0.00019776,2]
[359103741,1745709032918,-500.0,0.00019776,2]
[359103742,1745709032928,-400.0,0.00019776,2]
[359103743,1745709032937,-534.30097685,0.00019776,2]
[359103744,1745709032946,-500.0,0.00019776,2]
[359103745,1745709032956,-400.0,0.00019776,2]
[359103746,1745709032966,-500.0,0.00019776,2]
[359103747,1745709032975,-400.0,0.00019776,2]
[359103748,1745709032985,-500.0,0.00019776,2]
[359103749,1745709032995,-435.11,0.00019776,2]
[359103750,1745709033005,-400.0,0.00019776,2]
[359103751,1745709033014,-469.13,0.00019776,2]
[359103752,1745709033024,-400.0,0.00019776,2]
[359103753,1745709033034,-400.0,0.00019776,2]
[359103754,1745709033044,-500.0,0.00019776,2]
[359103755,1745709033056,-490.97,0.00019776,2]
[359103756,1745709033066,-485.23,0.00019776,2]
[359103757,1745709033076,-400.0,0.00019776,2]
[359103758,1745709033085,-400.0,0.00019776,2]
[359103759,1745709033096,-500.0,0.00019776,2]
[359103760,1745709033106,-400.0,0.00019776,2]
[359103761,1745709033117,-400.0,0.00019776,2]
[359103762,1745709033127,-400.0,0.00019776,2]
[359103763,1745709033137,-400.0,0.00019776,2]
[359103764,1745709033147,-500.0,0.00019776,2]
[359103765,1745709033157,-422.2,0.00019776,2]
[359103766,1745709033166,-400.0,0.00019776,2]
[359103767,1745709033177,-400.0,0.00019776,2]
[359103768,1745709033186,-500.0,0.00019776,2]
[359103769,1745709033197,-400.0,0.00019776,2]
[359103770,1745709033207,-308.83261399,0.00019776,2]
[359103771,1745709033216,-500.0,0.00019776,2]
[359103772,1745709033227,-400.0,0.00019776,2]
[359103773,1745709033236,-400.0,0.00019776,2]
[359103774,1745709033246,-400.0,0.00019776,2]
[359103775,1745709033255,-500.0,0.00019776,2]
[359103776,1745709033266,-500.0,0.00019776,2]
[359103777,1745709033276,-400.0,0.00019776,2]
[359103778,1745709033286,-503.27,0.00019776,2]
[359103779,1745709033296,-500.0,0.00019776,2]
[359103780,1745709033306,-500.0,0.00019776,2]
[359103781,1745709033316,-400.0,0.00019776,2]
[359103782,1745709033326,-400.0,0.00019776,2]
[359103783,1745709033336,-500.0,0.00019776,2]
[359103784,1745709033346,-500.0,0.00019776,2]
[359103785,1745709033356,-566.51,0.00019776,2]
[359103786,1745709033366,-400.0,0.00019776,2]
[359103787,1745709033376,-500.0,0.00019776,2]
[359103788,1745709033386,-532.03936521,0.00019776,2]
[359103789,1745709033395,-505.57630559,0.00019776,2]
[359103790,1745709033406,-207.751237,0.00019776,2]
[359103791,1745709033418,-400.0,0.00019776,2]
[359103792,1745709033428,-400.0,0.00019776,2]
[359103793,1745709033437,-500.0,0.00019776,2]
[359103794,1745709033447,-400.0,0.00019776,2]
[359103795,1745709033456,-400.0,0.00019776,2]
[359103796,1745709033466,-400.0,0.00019776,2]
[359103797,1745709033475,-400.0,0.00019776,2]
[359103798,1745709033485,-555.95,0.00019776,2]
[359103799,1745709033496,-500.0,0.00019776,2]
[359103800,1745709033506,-400.0,0.00019776,2]
[359103801,1745709033516,-400.0,0.00019776,2]
[359103802,1745709033526,-400.0,0.00019776,2]
[359103803,1745709033535,-500.0,0.00019776,2]
[359103804,1745709033545,-202.565733,0.00019776,2]
[359103805,1745709033555,-414.19996969,0.00019776,2]
[359103806,1745709033566,-500.0,0.00019776,2]
[359103807,1745709033575,-453.46,0.00019776,2]
[359103808,1745709033585,-906.8,0.00019776,2]
[359103809,1745709033594,-400.0,0.00019776,2]
[359103810,1745709033604,-400.0,0.00019776,2]
[359103811,1745709033614,-449.44,0.00019776,2]
[359103812,1745709033624,-400.0,0.00019776,2]
[359103813,1745709033633,-166.423983,0.00019776,2]
[359103814,1745709033642,-500.0,0.00019776,2]
[359103815,1745709033653,-400.0,0.00019776,2]
[359103816,1745709033662,-400.0,0.00019776,2]
[359103817,1745709033671,-941.23,0.00019776,2]
[359103818,1745709033680,-400.0,0.00019776,2]
[359103819,1745709033689,-218.13582907,0.00019776,2]
[359103820,1745709033700,-400.0,0.00019776,2]
[359103821,1745709033710,-400.0,0.00019776,2]
[359103822,1745709033719,-400.0,0.00019776,2]
[359103823,1745709033728,-400.93,0.00019776,2]
[359103824,1745709033738,-400.0,0.00019776,2]
[359103825,1745709033747,-469.39,0.00019776,2]
[359103826,1745709033757,-348.06498281,0.00019776,2]
[359103827,1745709033767,-400.0,0.00019776,2]
[359103828,1745709033777,-400.0,0.00019776,2]
[359103829,1745709033787,-400.0,0.00019776,2]
[359103830,1745709033797,-400.0,0.00019776,2]
[359103831,1745709033806,-400.0,0.00019776,2]
[359103832,1745709033816,-858.36,0.00019776,2]
[359103833,1745709033825,-400.0,0.00019776,2]
[359103834,1745709033835,-400.0,0.00019776,2]
[359103835,1745709033845,-400.0,0.00019776,2]
[359103836,1745709033855,-400.0,0.00019776,2]
[359103837,1745709033865,-400.0,0.00019776,2]
[359103838,1745709033875,-400.0,0.00019776,2]
[359103839,1745709033884,-400.0,0.00019776,2]
[359103840,1745709033894,-400.0,0.00019776,2]
[359103841,1745709033903,-400.0,0.00019776,2]
[359103842,1745709033913,-400.0,0.00019776,2]
[359103843,1745709033922,-150.0,0.00019776,2]
[359103844,1745709033931,-400.0,0.00019776,2]
[359103845,1745709033941,-400.0,0.00019776,2]
[359103846,1745709033951,-400.0,0.00019776,2]
[359103847,1745709033961,-400.0,0.00019776,2]
[359103848,1745709033970,-702.75,0.00019776,2]
[359103849,1745709033979,-400.0,0.00019776,2]
[359103850,1745709033989,-400.0,0.00019776,2]